Workbook

Sheet Vijnana Vahini
A1: Vijnana Vahini Budget vs. Expenses
G2: June 2013 - March 2014
A3: SNo | B3: Activities | C3: Rate | D3: Unit | E3: No. of Units | F3: Budget | G3: Amount | H3: % | I3: Comments
A4: A | B4: Personnel Cost | C4: =SUM(F5:F8) -> 278100 | D4: per year | E4: 1 | F4: =C4*E4 -> 278100 | G4: =SUM(G5:G8) -> 198613 | H4: =G4/F4 -> 0.7141783531 | I4: On track
A5: A.1 | B5: Program Manager | C5: 7500 | D5: per month | E5: 12 | F5: 90000 | G5: 80000 | H5: 0.8888888889 | I5: On track
A6: A.2 | B6: Project Coordinator | C6: 8000 | D6: per month | E6: 12 | F6: 96000 | G6: 75583 | H6: 0.7873229167 | I6: On track
A7: A.3 | B7: Facilitator | C7: 7000 | D7: per month | E7: 12 | F7: 84000 | G7: 35745 | H7: 0.4255357143 | I7: On track - on the lower side because a B.Ed candidate was appointed in October on the recommendations of the Govt. schools
A8: A.4 | B8: Staff Benefit | C8: =SUM(F5:F7)*0.03 -> 8100 | D8: per year | E8: 1 | F8: 8100 | G8: 7285 | H8: 0.899382716 | I8: On track
A9: B | B9: Recurring Cost | C9: =SUM(F10,F16,F19,F27,F30) -> 633200 | D9: per year | E9: 1 | F9: 633200 | G9: =SUM(G10,G16,G19,G27,G30) -> 444790 | H9: 0.7024478838 | I9: Request for re-appropriation internally
A10: B.1 | B10: Operational Expenses | C10: =SUM(F11:F15) -> 50200 | D10: per year | E10: 1 | F10: 50200 | G10: =SUM(G11:G15) -> 31933 | H10: 0.6361155378
A11: B.1.1 | B11: Office rent | C11: 1700 | D11: per month | E11: 12 | F11: 20400 | G11: 16450 | H11: 0.806372549 | I11: On track
A12: B.1.2 | B12: Stationery & other expenses | C12: 750 | D12: per month | E12: 12 | F12: 9000 | G12: 8975 | H12: 0.9972222222 | I12: On track
A13: B.1.3 | B13: Phone calls | C13: 400 | D13: per month | E13: 12 | F13: 4800 | G13: 5558 | H13: 1.157916667 | I13: Crossed the limits because of the addition of a new internet connection
A14: B.1.4 | B14: Teachers' meeting | C14: 1000 | D14: per meeting | E14: 4 | F14: 4000 | G14: 646 | H14: 0.1615 | I14: On the lower side because of the most of the expenses incurred were placed under the Science Park project
A15: B.1.5 | B15: Mentoring & Monitoring | C15: 12000 | D15: per year | E15: 1 | F15: 12000 | G15: 304 | H15: 0.02533333333 | I15: On the lower side because of the most of the expenses incurred were placed under the Science Park project
A16: B.2 | B16: Travel & Conveyance | C16: =SUM(F17:F18) -> 120000 | D16: per year | E16: 1 | F16: 120000 | G16: =SUM(G17:G18) -> 99004 | H16: 0.8250333333
A17: B.2.1 | B17: Vehicle travel | C17: =17 -> 17 | D17: per km | E17: 6000 | F17: 102000 | G17: 89404 | H17: 0.8765098039 | I17: On track - the budget to be reviewed for next year
A18: B.2.2 | B18: Staff travel & food | C18: 1500 | D18: per month | E18: 12 | F18: 18000 | G18: 9600 | H18: 0.5333333333
A19: B.3 | B19: Technical & resource support | C19: =SUM(F20:F26) -> 213000 | D19: per year | E19: 1 | F19: 213000 | G19: =SUM(G20:G25) -> 81064 | H19: 0.3805821596
A20: B.3.1 | B20: Equipment & chemicals | C20: 50000 | D20: per year | E20: 1 | F20: 50000 | G20: 46112 | H20: 0.92224 | I20: On track
A21: B.3.2 | B21: Books, CDs & DVDs | C21: 15000 | D21: per year | E21: 1 | F21: 15000 | G21: 7908 | H21: 0.5272 | I21: On track
A22: B.3.3 | B22: Other materials | C22: 10000 | D22: per year | E22: 1 | F22: 10000 | G22: 11953 | H22: 1.1953 | I22: On the higher side because of the addition of the new boards to the mobile science lab
A23: B.3.4 | B23: Question Box | C23: 400 | D23: per box | E23: 35 | F23: 14000 | G23: 0 | H23: 0 | I23: Scheduled for May
A24: B.3.5 | B24: Newsletter & Calendar | C24: 2000 | D24: per month | E24: 12 | F24: 24000 | G24: 12660 | H24: 0.5275 | I24: Calendar was published but the newsletter couldn't take off
A25: B.3.6 | B25: Workbook | C25: 10000 | D25: one time | E25: 1 | F25: 10000 | G25: 2431 | H25: 0.2431 | I25: Funds raised from other donors
A26: B.3.7 | B26: Multiple Kits for Science Lab | C26: 15000 | D26: per set | E26: 6 | F26: 90000 | G26: 0 | H26: 0 | I26: Scheduled for May
A27: B.4 | B27: Capacity building | C27: =SUM(F28:F29) -> 20000 | D27: per year | E27: 1 | F27: 20000 | G27: =SUM(G28:G29) -> 4916 | H27: 0.2458
A28: B.4.1 | B28: Training Programs | C28: 7500 | D28: per program | E28: 2 | F28: 15000 | G28: 2824 | H28: 0.1882666667 | I28: Funds raised from KSTA
A29: B.4.2 | B29: Staff training & exposure | C29: 5000 | D29: per year | E29: 1 | F29: 5000 | G29: 2092 | H29: 0.4184 | I29: On track
A30: B.5 | B30: Events | C30: =SUM(F31:F35) -> 230000 | D30: per year | E30: 1 | F30: 230000 | G30: =SUM(G31:G35) -> 227873 | H30: 0.9907521739
A31: B.5.1 | B31: School based events | C31: 500 | D31: per program | E31: 20 | F31: 10000 | G31: 49272 | H31: =G31/(F31+F32) -> 1.2318 | I31: Higher costs were incurred to make arrangements for the Vijnana Mela to make it a big event and encourage the participation of the Govt. officials and the National Science Day program at Mysore
A32: B.5.2 | B32: Science calendar | C32: 30000 | D32: per year | E32: 1 | F32: 30000
A33: B.5.3 | B33: OOSC Survey | C33: 20000 | D33: per year | E33: 1 | F33: 20000 | G33: 12340 | H33: =G33/F33 -> 0.617 | I33: Survey took lesser time than the plan
A34: B.5.4 | B34: Community Radio Programs | C34: 0 | F34: 0 | I34: Included in the earlier budgets but later removed because of the confusion with the FCRA. Has been clarified with the Government officials
A35: B.5.5 | B35: Lab in Box | C35: 10000 | D35: per kit | E35: 17 | F35: 170000 | G35: 166261 | H35: 0.9780058824 | I35: On track
A36: C | B36: Capital cost | C36: =F37 -> 30000 | D36: one time | E36: 1 | F36: 30000 | G36: =G37 -> 0 | H36: 0
A37: C.1 | B37: LCD Projector | C37: 30000 | D37: one time | E37: 1 | F37: 30000 | G37: 0 | H37: 0 | I37: Scheduled for May
B38: Total | F38: =(F4+F9)+F36 -> 941300 | G38: =(G4+G9)+G36 -> 643403 | H38: 0.6835259747
B39: Overheads | D39: 0.04 | F39: =F38*0.04 -> 37652 | G39: =G38*0.04 -> 25736.12 | H39: 0.6835259747
B40: Total + Overheads | F40: =F38+F39 -> 978952 | G40: =G38+G39 -> 669139.12 | H40: 0.6835259747
B41: Fund Balance with SVYM | F41: 190990.6
B42: Fund Received during the period | F42: 788000
B43: Unspent Amount | G43: =(F41+F42)-G40 -> 309851.48
